bitfinex-derivatives/quotes_ETHF0:USTF0_20241105
["timestamp","ask_amount","ask_price","bid_price","bid_amount"]
[1730845116082,3.62257,2411.1,2410.9,0.4148]
[1730845116389,3.2078,2411.1,2411.0,0.41478]
[1730845116792,40.8,2411.5,2411.0,4.1472]
[1730845117085,4.5392,2411.6,2411.3,0.41472]
[1730845117384,0.41473,2411.4,2411.2,0.41474]
[1730845117583,0.41474,2411.3,2411.1,1.33465]
[1730845117885,45.3392,2411.6,2411.1,0.9199]
[1730845118183,45.3392,2411.6,2411.3,0.41472]
[1730845118383,0.41471,2411.5,2411.3,0.41472]
[1730845119285,4.5392,2411.6,2411.1,0.9199]
[1730845119486,0.41472,2411.4,2411.2,0.41474]
[1730845119893,0.41472,2411.4,2411.3,0.41473]
[1730845120086,4.5392,2411.6,2411.1,0.9199]
[1730845120287,0.41474,2411.3,2411.1,1.33466]
[1730845120791,4.5392,2411.6,2411.1,0.9199]
[1730845120987,0.41474,2411.3,2411.2,0.41474]
[1730845122593,0.41475,2411.2,2411.1,0.9199]
[1730845122787,0.41475,2411.2,2411.1,1.33466]
[1730845122994,0.41477,2411.1,2411.0,0.41478]
[1730845123497,0.41476,2411.2,2411.0,0.41477]
[1730845123687,0.41476,2411.1,2411.0,0.41477]
[1730845123882,0.4625,2411.1,2410.8,3.6573]
[1730845124088,0.4759,2411.0,2410.8,3.6573]
[1730845124294,0.41481,2410.9,2410.6,0.4643]
[1730845124597,0.41481,2410.9,2410.7,0.41482]
[1730845126388,0.4148,2410.9,2410.7,0.41482]
[1730845126598,4.1547,2411.0,2410.6,0.4643]
[1730845126795,4.56949,2411.0,2410.8,0.41481]
[1730845127087,0.4148,2410.9,2410.8,0.41481]
[1730845128083,4.1547,2411.0,2410.6,0.4643]
[1730845128292,4.56949,2411.0,2410.8,0.41481]
[1730845128492,0.4148,2410.9,2410.8,0.41481]
[1730845128989,0.4148,2410.9,2410.6,0.4643]
[1730845129186,0.4148,2410.9,2410.7,0.41482]
[1730845129794,0.4148,2410.9,2410.7,0.41483]
[1730845130184,4.1547,2411.0,2410.7,0.41483]
[1730845130391,0.41482,2410.8,2410.7,0.41483]
[1730845130582,4.1547,2411.0,2410.9,0.4148]
[1730845130786,4.56948,2411.0,2410.9,0.4148]
[1730845130987,4.56948,2411.0,2410.8,0.41481]
[1730845131188,0.4148,2410.9,2410.8,0.41481]
[1730845131387,0.4148,2410.9,2410.7,0.41482]
[1730845131586,0.4148,2410.9,2410.8,0.41482]
[1730845132186,0.4148,2410.9,2410.7,0.41482]
[1730845132383,0.4148,2410.9,2410.8,0.41482]
[1730845132586,0.4148,2410.9,2410.2,6.35053625]
[1730845132587,4.148,2410.8,2410.2,1.61485116]
[1730845132791,4.148,2410.8,2410.0,5.2]
[1730845132792,5.34786316,2410.4,2410.0,5.2]
[1730845132994,3.2078,2410.1,2410.0,5.2]
[1730845133194,44.42274,2410.1,2410.0,4.992]
[1730845133394,48.57234,2410.1,2410.0,4.992]
[1730845133694,49.68734,2410.1,2410.0,1.322876]
[1730845134396,40.8,2410.1,2410.0,1.322876]
[1730845135285,2.58338509,2410.3,2410.0,1.322876]
[1730845135486,3.2078,2410.4,2410.0,1.322876]
[1730845135693,40.8,2410.5,2410.1,0.4719]
[1730845135893,2.58338509,2410.6,2410.2,0.925]
[1730845136203,2.99823509,2410.6,2410.2,0.925]
[1730845136398,44.42264,2410.7,2410.2,0.925]
[1730845136694,0.41487,2410.5,2410.2,0.925]
[1730845136899,2.99824509,2410.6,2410.2,0.925]
[1730845137699,2.58338509,2410.6,2410.2,0.925]
[1730845137901,2.99823509,2410.6,2410.2,0.925]
[1730845138195,2.58338509,2410.6,2410.2,0.925]
[1730845138387,2.58338509,2410.6,2410.2,1.33991]
[1730845139498,2.99823509,2410.6,2410.2,0.925]
[1730845139694,2.58338509,2410.6,2410.3,0.4149]
[1730845139898,2.58338509,2410.6,2410.2,0.925]
[1730845140094,2.99823509,2410.6,2410.2,1.33991]
[1730845140289,0.41488,2410.5,2410.2,0.925]
[1730845140495,2.58338509,2410.6,2410.2,1.33991]
[1730845140704,0.41488,2410.5,2410.2,1.33991]
[1730845140897,2.58338509,2410.6,2410.3,0.4149]
[1730845141293,2.58338509,2410.6,2410.2,0.925]
[1730845141496,2.58338509,2410.6,2410.4,0.41487]
[1730845141693,0.4149,2410.3,2410.2,0.925]
[1730845142701,0.4149,2410.3,2410.0,1.322876]
[1730845142702,0.41494,2410.1,2410.0,1.322876]
[1730845143000,3.62274,2410.1,2410.0,1.322876]
[1730845143203,10.35572509,2410.1,2410.0,1.322876]
[1730845144094,51.15572509,2410.1,2410.0,1.322876]
[1730845144490,48.57234,2410.1,2410.0,1.322876]
[1730845144695,51.15572509,2410.1,2410.0,1.322876]
[1730845149696,51.15572509,2410.1,2410.0,0.435506]
[1730845149897,51.15572509,2410.1,2410.0,6e-06]
[1730845153413,10.35572509,2410.1,2410.0,6e-06]
[1730845154005,51.15572509,2410.1,2410.0,6e-06]
[1730845157209,47.00612509,2410.1,2410.0,6e-06]
[1730845157713,3.62274,2410.1,2410.0,6e-06]
[1730845158004,2.58338509,2410.3,2410.0,6e-06]
[1730845158205,0.41494,2410.1,2410.0,6e-06]
[1730845158800,44.0078,2410.2,2410.0,6e-06]
[1730845159002,3.2078,2410.2,2410.0,6e-06]
[1730845159203,3.62273,2410.2,2410.0,6e-06]
[1730845159406,0.41494,2410.1,2410.0,6e-06]
[1730845159608,41.21494,2410.1,2410.0,6e-06]
[1730845161903,40.8,2410.1,2410.0,6e-06]
[1730845162208,45.36454,2410.1,2410.0,6e-06]
[1730845164317,47.94792509,2410.1,2410.0,6e-06]
[1730845164810,47.94792509,2410.1,2409.6,0.096]
[1730845164811,0.41501,2409.7,2409.6,0.096]
[1730845165115,0.41507,2409.3,2409.2,0.8981]
[1730845165819,41.21507,2409.3,2409.2,0.8981]
[1730845166004,40.8,2409.3,2409.2,0.8981]
[1730845166218,41.21507,2409.3,2409.2,0.8981]
[1730845166412,40.8,2409.3,2409.2,0.8981]
[1730845167008,41.21507,2409.3,2409.2,0.8981]
[1730845167415,40.8,2409.3,2409.2,1.31319]
[1730845167720,41.21507,2409.3,2409.2,0.8981]
[1730845168516,40.8,2409.3,2409.2,0.8981]
[1730845168729,41.21507,2409.3,2409.2,1.31319]
[1730845169407,3.2078,2409.7,2409.2,5.0485]
[1730845169612,3.62281,2409.7,2409.5,0.41503]
[1730845169821,3.62281,2409.7,2409.6,1.30622]
[1730845170123,0.41507,2409.3,2409.2,0.4585]
[1730845170320,6.20625509,2409.3,2409.2,0.4585]
[1730845170520,10.35665509,2409.3,2409.2,0.4585]
[1730845170724,51.15665509,2409.3,2409.2,0.4585]
[1730845171219,1.45283,2409.2,2408.5,0.208]
[1730845171425,2.58338509,2408.8,2408.6,0.4761]
[1730845171616,2.99855509,2408.8,2408.7,0.8923]
[1730845172220,3.2078,2408.9,2408.7,5.0435]
[1730845172520,0.208,2409.5,2408.7,5.0435]
[1730845172521,3.2078,2409.2,2408.7,0.8923]
[1730845172719,2.4931,2409.2,2409.1,0.41511]
[1730845173022,2.58338509,2409.6,2408.9,3.2078]
[1730845173219,0.41505,2409.5,2409.1,0.4151]
[1730845173614,0.41506,2409.4,2409.2,0.4391]
[1730845174923,2.58338509,2409.6,2409.2,4.5895]
[1730845175127,0.41507,2409.3,2409.2,0.4391]
[1730845175623,4.56547,2409.3,2409.2,0.4391]
[1730845175828,0.41507,2409.3,2409.2,0.4391]
[1730845176325,41.21507,2409.3,2409.2,0.4391]
[1730845176927,0.41507,2409.3,2409.2,0.4391]
[1730845177521,0.41506,2409.4,2409.2,0.4391]
[1730845177715,2.99841509,2409.6,2409.3,0.88906]
[1730845177920,0.41504,2409.5,2409.3,0.474]
[1730845178118,2.58338509,2409.6,2409.3,0.474]
[1730845178431,0.41506,2409.4,2409.3,0.474]
[1730845179425,2.58338509,2409.6,2409.3,0.88907]
[1730845179725,2.58338509,2409.6,2409.3,0.474]
[1730845179726,2.99841509,2409.6,2409.3,0.474]
[1730845179925,2.58338509,2409.6,2409.3,0.474]
[1730845180130,0.41505,2409.5,2409.3,0.88906]
[1730845180324,2.58338509,2409.6,2409.3,0.88906]
[1730845180524,2.58338509,2409.4,2409.2,3.6469]
[1730845180727,0.41507,2409.3,2409.2,3.6469]
[1730845181027,0.41507,2409.3,2409.2,7.7973]
[1730845181416,2.99845509,2409.4,2409.2,8.21239]
[1730845182027,0.41505,2409.5,2409.4,0.41506]
[1730845182326,0.41506,2409.4,2409.2,4.06198]
[1730845182624,0.41506,2409.4,2409.3,0.41507]
[1730845182934,0.41504,2409.5,2409.3,0.41506]
[1730845183128,0.41504,2409.5,2409.4,0.87566]
[1730845183622,2.99841509,2409.6,2409.5,0.41504]
[1730845183823,2.99841509,2409.6,2409.5,0.4744]
[1730845184731,2.58338509,2409.6,2409.5,0.88944]
[1730845184925,0.41502,2409.6,2409.5,4.6248]
[1730845185125,0.41502,2409.6,2409.5,0.4744]
[1730845185325,0.41502,2409.6,2409.5,0.88944]
[1730845185830,0.41502,2409.6,2409.5,0.4744]
[1730845186929,0.41502,2409.6,2409.5,0.88944]
[1730845187427,2.1382081,2409.8,2409.5,0.4744]
[1730845187632,0.41499,2409.8,2409.7,0.41499]
[1730845187829,0.41501,2409.7,2409.6,0.4302]
[1730845188334,45.52159319,2409.9,2409.6,0.4302]
[1730845188335,0.41499,2409.8,2409.7,0.415]
[1730845188747,45.93657319,2409.9,2409.7,0.41501]
[1730845188936,45.93657319,2409.9,2409.8,0.41499]
[1730845189132,45.52159319,2409.9,2409.7,0.41499]
[1730845189439,0.41499,2409.8,2409.6,0.84521]
[1730845189629,0.41499,2409.8,2409.7,0.41501]
[1730845189829,0.41499,2409.8,2409.6,0.84521]
[1730845190933,45.52159319,2409.9,2409.6,0.4302]
[1730845191135,0.41499,2409.8,2409.6,0.84521]
[1730845192939,0.415,2409.8,2409.6,0.84522]
[1730845194338,0.415,2409.8,2409.7,0.41501]
[1730845194636,43.38338509,2409.9,2409.6,0.4302]
[1730845194838,43.79836509,2409.9,2409.7,0.415]
[1730845195033,0.41499,2409.8,2409.7,0.415]
[1730845195236,43.38338509,2409.9,2409.7,0.415]
[1730845195436,0.41499,2409.8,2409.7,0.415]
[1730845195929,0.41499,2409.8,2409.6,0.84521]
[1730845196243,0.41501,2409.7,2409.6,0.84521]
[1730845196441,0.415,2409.8,2409.6,0.4302]
[1730845196634,0.415,2409.8,2409.7,0.41501]
[1730845197332,0.415,2409.8,2409.6,0.4302]
[1730845197333,0.415,2409.8,2409.6,3.638]
[1730845197641,0.41501,2409.7,2409.6,4.05302]
[1730845197838,0.41501,2409.7,2409.6,3.638]
[1730845198038,0.41501,2409.7,2409.6,7.7876]
[1730845198338,0.41501,2409.7,2409.6,4.05302]
[1730845198541,0.41501,2409.7,2409.5,0.4744]
[1730845198542,2.58338509,2409.7,2409.5,0.4744]
[1730845198737,0.41502,2409.6,2409.5,0.4744]
[1730845199541,0.41502,2409.6,2409.5,0.88944]
[1730845199744,43.79836509,2409.9,2409.6,0.41502]
[1730845200044,43.38338509,2409.9,2409.6,4.1127]
[1730845200345,2.99836509,2409.9,2409.8,0.41499]
[1730845200843,2.99836509,2409.9,2409.8,4.56459]
[1730845201241,2.58338509,2409.9,2409.7,0.41499]
[1730845201441,0.41499,2409.8,2409.7,0.41499]
[1730845201646,2.58338509,2409.9,2409.8,0.41499]
[1730845202143,2.58338509,2409.9,2409.8,4.56459]
[1730845203040,2.58338509,2409.9,2409.8,4.1496]
[1730845203345,0.41499,2409.8,2409.7,0.41499]
[1730845203542,2.58338509,2409.9,2409.8,0.41499]
[1730845203754,2.58338509,2409.9,2409.8,4.56459]
[1730845203940,0.41496,2410.0,2409.8,4.1496]
[1730845204247,0.41496,2410.0,2409.9,0.41497]
[1730845204436,7.92939319,2410.2,2410.0,0.41495]
[1730845204636,8.34432319,2410.2,2410.1,0.4458]
[1730845205642,6.20611509,2410.2,2410.1,0.4458]
[1730845205843,8.34432319,2410.2,2410.1,0.4458]
[1730845206043,43.3531181,2410.3,2410.2,0.41492]
[1730845206351,0.4149,2410.3,2410.2,0.41492]
[1730845206547,0.4149,2410.3,2410.2,0.88962]
[1730845206746,4.1488,2410.3,2409.6,4.29321473]
[1730845206953,4.1488,2410.3,2409.6,3.2078]
[1730845206954,43.38338509,2410.2,2409.6,3.2078]
[1730845207254,0.41495,2410.0,2409.8,0.41498]
[1730845207755,0.41497,2409.9,2409.8,0.41498]
[1730845208451,2.1382081,2410.3,2410.1,0.41494]
[1730845208661,0.4653,2410.4,2410.2,0.86822]
[1730845208662,0.88019,2410.4,2410.2,0.86822]
[1730845208950,41.68019,2410.4,2410.3,0.4747]
[1730845209546,0.88019,2410.4,2410.3,0.8896]
[1730845209753,0.88019,2410.4,2410.3,0.4747]
[1730845210052,0.4653,2410.4,2410.3,0.8896]
[1730845210351,0.88018,2410.4,2410.3,0.8896]
[1730845210555,0.88018,2410.4,2410.3,5.0384]
[1730845210747,0.41488,2410.4,2410.3,5.0384]
[1730845211356,0.41488,2410.4,2410.3,0.4747]
[1730845211761,0.41486,2410.6,2410.5,0.41486]
[1730845212051,0.41485,2410.6,2410.5,0.41487]
[1730845212256,0.41485,2410.6,2410.5,4.1488]
[1730845212442,0.41485,2410.6,2410.5,0.41487]
[1730845212649,0.41485,2410.6,2410.5,4.56367]
[1730845212952,40.8,2410.8,2410.5,4.1488]
[1730845213249,0.41485,2410.7,2410.5,0.41485]
[1730845213446,0.41485,2410.7,2410.6,0.4655]
[1730845213647,0.41485,2410.7,2410.6,0.88035]
[1730845214654,0.41483,2410.8,2410.7,0.41483]
[1730845214949,0.41483,2410.8,2410.3,1.51194]
[1730845214950,0.41488,2410.4,2410.3,0.4747]
[1730845215458,41.21488,2410.4,2410.3,0.4747]
[1730845216449,40.8,2410.4,2410.1,3.6733]
[1730845216848,0.41491,2410.3,2410.1,3.6733]
[1730845217656,0.41491,2410.3,2410.1,4.08823]
[1730845217856,0.41491,2410.3,2410.1,3.6733]
[1730845218060,0.41492,2410.2,2410.1,3.6733]
[1730845221159,0.41491,2410.3,2410.1,4.08823]
[1730845221960,5.3493956,2410.7,2410.2,4.1488]
[1730845222260,0.41486,2410.6,2410.5,0.41487]
[1730845222453,3.62265,2410.7,2410.5,0.84447]
[1730845222655,0.41485,2410.7,2410.5,0.84447]
[1730845222853,41.6981,2410.8,2410.5,0.84447]
[1730845223064,0.41485,2410.6,2410.5,0.84447]
[1730845223257,0.41485,2410.6,2410.5,0.4296]
[1730845224257,0.41485,2410.6,2410.5,0.84447]
[1730845224860,0.41485,2410.7,2410.5,0.84447]
[1730845225461,0.41485,2410.7,2410.6,0.41485]
[1730845226163,0.41485,2410.6,2410.5,0.84446]
[1730845227663,0.41484,2410.7,2410.5,0.84446]
[1730845227853,0.41484,2410.7,2410.6,0.41485]
[1730845228058,0.4412,2410.8,2410.6,0.41485]
[1730845228260,0.85602,2410.8,2410.7,0.41483]
[1730845229666,43.3564056,2410.9,2410.8,0.41482]
[1730845231261,0.41482,2410.8,2410.7,0.41482]
[1730845231463,43.3564056,2410.9,2410.8,0.41482]
[1730845231964,0.41482,2410.8,2410.7,0.41482]
[1730845234371,42.9415956,2410.9,2410.5,0.8646]
[1730845234568,0.41483,2410.8,2410.7,0.41483]
[1730845235365,0.41483,2410.8,2410.5,0.8646]
[1730845235571,42.9415956,2410.9,2410.5,0.4296]
[1730845235760,0.41483,2410.8,2410.7,0.41483]
[1730845238471,0.41483,2410.8,2410.7,0.88703]
[1730845238664,0.41483,2410.8,2410.7,0.4722]
[1730845239566,2.1415956,2410.9,2410.4,3.2078]
[1730845239865,0.41484,2410.7,2410.6,0.88075]
[1730845241870,2.1415956,2410.8,2410.6,0.88075]
[1730845242070,2.5564056,2410.9,2410.7,0.88722]
[1730845242261,0.41482,2410.8,2410.7,0.88722]
[1730845242463,0.41482,2410.8,2410.7,0.4724]
[1730845242677,0.41482,2410.8,2410.7,0.88723]
[1730845242978,2.1415956,2410.9,2410.7,0.4724]
[1730845243168,2.1415956,2410.9,2410.7,0.88722]
[1730845243367,0.41482,2410.8,2410.7,0.88722]
[1730845243877,2.1415956,2410.9,2410.7,0.88722]
[1730845244180,2.1415956,2410.9,2410.8,0.41482]
[1730845244675,2.5563956,2410.9,2410.8,0.41482]
[1730845246079,2.5564056,2410.9,2410.8,0.41482]
[1730845246976,2.5564056,2410.9,2410.7,0.4724]
[1730845246977,0.41482,2410.8,2410.7,0.88722]
[1730845247373,0.41482,2410.8,2410.7,5.03522]
[1730845248376,0.41482,2410.8,2410.7,0.88722]
[1730845248976,2.5563956,2410.9,2410.8,0.41482]
[1730845250184,2.1415956,2410.9,2410.8,0.41482]
[1730845250773,2.1415956,2410.9,2410.8,4.56282]
[1730845251079,3.10620467,2411.2,2410.9,0.4148]
[1730845251080,2.1415956,2411.0,2410.9,0.4148]
[1730845251573,2.1415956,2411.0,2410.9,4.5628]
[1730845252074,2.5563656,2411.1,2411.0,0.41478]
[1730845252479,2.1415956,2411.1,2411.0,0.41478]
[1730845252677,2.5563556,2411.1,2411.0,0.41478]
[1730845253483,2.1415956,2411.1,2411.0,0.41478]
[1730845253977,2.1415956,2411.1,2410.7,0.4724]
[1730845254174,0.41477,2411.1,2411.0,0.41477]
[1730845254381,2.1415956,2411.2,2410.9,3.2078]
[1730845254577,2.5563556,2411.2,2411.1,0.41476]
[1730845256076,0.41476,2411.1,2411.0,0.85966]
[1730845256687,2.5563556,2411.2,2411.1,0.41476]
[1730845256884,0.41476,2411.1,2411.0,0.4449]
[1730845257080,2.1415956,2411.2,2411.0,0.4449]
[1730845257288,2.5563556,2411.2,2411.1,0.41476]
[1730845257578,0.41476,2411.1,2411.0,0.85967]
[1730845257781,0.41476,2411.1,2411.0,0.4449]
[1730845258277,2.5563556,2411.1,2411.0,0.4449]
[1730845258478,0.41476,2411.1,2411.0,0.4449]
[1730845258684,0.41476,2411.1,2410.9,3.62259]
[1730845258685,0.41478,2411.0,2410.9,3.2078]
[1730845259177,0.41478,2411.0,2410.8,0.4657]
[1730845259378,2.1415956,2411.0,2410.6,3.2078]
[1730845259581,2.1415956,2411.0,2410.7,0.41482]
[1730845259582,0.41481,2410.9,2410.7,0.41482]
[1730845259781,41.21481,2410.9,2410.7,0.41482]
[1730845259983,40.8,2410.9,2410.7,0.41482]
[1730845260186,0.41482,2410.8,2410.6,4.08934]
[1730845260685,0.41483,2410.7,2410.6,3.6745]
[1730845260885,0.41483,2410.7,2410.6,4.08935]
[1730845261079,0.41483,2410.7,2410.6,8.23735]
[1730845262292,2.1415956,2410.9,2410.7,0.41483]
[1730845262293,0.41482,2410.8,2410.7,0.41483]
[1730845262481,2.5564156,2410.9,2410.7,0.41483]
[1730845262675,0.41483,2410.8,2410.6,3.6745]
[1730845262879,2.1415956,2410.9,2410.6,3.6745]
[1730845263081,0.41483,2410.7,2410.6,4.08934]
[1730845263483,0.41483,2410.7,2410.6,8.23734]
[1730845264184,0.41483,2410.7,2410.6,7.3558]
[1730845265290,0.41483,2410.7,2410.6,3.2078]
[1730845265479,0.41488,2410.4,2410.3,3.2078]
[1730845265883,0.41488,2410.4,2410.3,3.6227]
[1730845266187,0.41488,2410.4,2410.3,3.2078]
[1730845266390,0.41488,2410.4,2410.3,3.6227]
[1730845267183,0.41488,2410.4,2410.3,3.2078]
[1730845268693,0.41488,2410.4,2410.3,3.6227]
[1730845269191,0.41488,2410.4,2410.3,3.2078]
[1730845269587,0.41488,2410.4,2410.3,3.6227]
[1730845270395,0.41488,2410.4,2410.3,0.4149]
[1730845270993,2.14843812,2410.5,2410.2,4.05981]
[1730845271196,0.4149,2410.3,2410.2,4.05981]
[1730845271599,0.4149,2410.3,2410.2,8.20861]
[1730845271799,0.4149,2410.4,2410.3,0.4149]
[1730845272201,0.4149,2410.3,2410.2,4.0598]
[1730845272500,0.4149,2410.4,2410.3,0.4149]
[1730845272895,0.4149,2410.3,2410.2,4.0598]
[1730845273096,0.4149,2410.3,2410.2,3.6449]
[1730845273296,0.4149,2410.3,2410.2,8.20862]
[1730845273493,0.4149,2410.3,2410.2,3.6449]
[1730845273698,0.4149,2410.3,2410.2,7.7937]
[1730845275300,0.4149,2410.3,2410.2,4.5859]
[1730845275497,0.4149,2410.3,2410.2,0.4371]
[1730845275899,0.4149,2410.3,2410.2,4.5859]
[1730845276301,0.4149,2410.3,2410.2,0.4371]
[1730845277000,0.4149,2410.3,2410.2,4.5859]
[1730845277404,0.4149,2410.3,2410.2,0.4371]
[1730845278602,0.41486,2410.6,2410.4,0.41488]
[1730845278797,2.14843812,2410.7,2410.3,0.462]
[1730845278995,5.82093812,2410.8,2410.3,0.462]
[1730845279199,5.82093812,2410.8,2410.4,0.41487]
[1730845279402,0.41485,2410.7,2410.5,0.41487]
[1730845279609,0.41486,2410.6,2410.4,0.41488]
[1730845279798,0.41486,2410.6,2410.4,0.41487]
[1730845280209,2.61313812,2410.8,2410.3,0.462]
[1730845280506,0.41485,2410.7,2410.5,0.41486]
[1730845280699,0.41485,2410.7,2410.6,0.4727]
[1730845282804,2.61313812,2410.8,2410.6,0.88755]
[1730845283106,0.4647,2410.8,2410.7,0.41483]
[1730845283407,0.4647,2410.8,2410.6,0.4727]
[1730845283408,0.87953,2410.8,2410.6,0.88755]
[1730845283605,0.41483,2410.7,2410.6,0.4727]
[1730845284105,2.14843812,2410.9,2410.6,0.4727]
[1730845284401,2.56324812,2410.9,2410.7,0.41483]
[1730845285104,2.14843812,2410.9,2410.8,0.41482]
[1730845285303,3.03291812,2411.0,2410.8,0.4148]
[1730845285610,3.03291812,2411.0,2410.6,0.4727]
[1730845285611,2.61813812,2411.0,2410.9,0.4148]
[1730845285908,0.4697,2411.0,2410.9,0.4148]
[1730845286801,0.88448,2411.0,2410.9,0.4148]
[1730845287207,0.4697,2411.0,2410.9,0.4148]
[1730845288015,0.88448,2411.0,2410.9,0.4148]
[1730845288811,0.4697,2411.0,2410.9,0.4148]
[1730845289821,2.14843812,2411.2,2410.8,0.4494]
[1730845290115,3.02385812,2411.4,2411.2,0.41475]
[1730845290304,43.40913812,2411.4,2411.3,0.88523]
[1730845290507,41.2607,2411.4,2411.3,0.88523]
[1730845290915,5.35623812,2411.5,2411.4,0.41471]
[1730845291117,3.2078,2411.5,2411.4,0.41471]
[1730845291818,41.2607,2411.6,2411.5,0.4147]
[1730845293017,0.4607,2411.6,2411.5,0.4147]
[1730845293213,1.19499829,2411.7,2411.6,0.41468]
[1730845293511,40.8,2411.7,2411.6,0.41468]
[1730845294021,0.4581,2411.8,2411.7,0.41466]
[1730845294915,0.44,2412.0,2411.9,0.41463]
[1730845295119,0.8981,2412.0,2411.9,0.41463]
[1730845295515,41.6981,2412.0,2411.9,0.41463]
[1730845295708,41.2581,2412.0,2411.9,0.41463]
[1730845296110,2.14843812,2412.4,2412.2,0.41458]
[1730845296111,0.41455,2412.4,2412.2,0.41458]
[1730845296312,1.19499829,2412.4,2412.3,0.41455]
[1730845296516,40.8,2412.4,2411.9,4.40279829]
[1730845296717,40.8,2412.4,2412.3,0.41454]
[1730845297118,40.8,2412.4,2411.9,4.40279829]
[1730845297119,0.4421,2412.5,2412.4,0.41454]
[1730845297329,2.45930829,2412.6,2412.5,0.41452]
[1730845297330,1.19499829,2412.6,2412.5,0.41452]
[1730845297620,1.19499829,2412.7,2412.5,0.41451]
[1730845297823,1.19499829,2412.7,2412.6,0.41451]
[1730845298026,1.19499829,2412.7,2412.5,0.41451]
[1730845298223,0.4421,2412.8,2412.3,1.19499829]
[1730845298522,1.19499829,2412.9,2412.3,2.23135829]
[1730845298717,0.41444,2413.0,2412.8,0.41446]
[1730845299023,2.04459829,2413.1,2412.5,3.2078]
[1730845299024,1.62969829,2413.1,2412.7,0.41449]
[1730845299229,1.62969829,2413.1,2412.8,0.41447]
[1730845299230,0.4347,2413.1,2412.8,0.41447]
[1730845299421,3.6391,2413.2,2413.0,0.41443]
[1730845299619,0.84908,2413.4,2413.0,0.41442]
[1730845299818,0.84908,2413.4,2413.1,0.41441]
[1730845300223,3.2078,2413.5,2413.2,0.4482]
[1730845300427,0.41438,2413.4,2413.2,0.4482]
[1730845300932,3.2078,2413.5,2413.2,0.4482]
[1730845301227,3.62216,2413.5,2413.2,0.4482]
[1730845301621,3.2078,2413.5,2413.2,0.4482]
[1730845302027,0.962,2413.9,2413.2,0.4482]
[1730845302235,0.41431,2413.8,2413.4,0.41435]
[1730845302529,0.41433,2413.7,2413.4,0.41436]
[1730845302926,0.41433,2413.7,2413.5,0.41435]
[1730845302927,0.41432,2413.7,2413.5,0.41435]
[1730845303123,0.41432,2413.7,2413.4,0.41436]
[1730845303833,0.866,2413.9,2413.3,0.4702]
[1730845304021,0.41431,2413.8,2413.5,0.41435]
[1730845304220,1.28029,2413.9,2413.3,0.4702]
[1730845304426,3.2078,2414.0,2413.8,0.4143]
[1730845304626,3.2078,2414.0,2413.8,0.41429]
[1730845305043,3.2078,2414.0,2413.9,0.466]
[1730845305224,0.41426,2414.1,2413.9,0.466]
[1730845305430,0.41427,2414.0,2413.9,0.466]
[1730845305833,40.8,2414.2,2413.9,0.466]
[1730845305834,0.41426,2414.1,2413.9,0.466]
[1730845307240,40.8,2414.2,2413.9,0.466]
[1730845307428,0.41427,2414.0,2413.9,0.466]
[1730845311844,0.41426,2414.1,2413.9,0.88028]
[1730845312144,0.41425,2414.1,2413.9,0.466]
[1730845312345,40.8,2414.2,2413.9,0.466]
[1730845312346,0.41427,2414.0,2413.9,0.466]
[1730845312547,0.41426,2414.1,2413.9,0.466]
[1730845313239,40.8,2414.2,2413.9,0.466]
[1730845313745,0.41427,2414.0,2413.9,0.466]
[1730845314342,40.8,2414.2,2413.9,0.466]
[1730845314645,0.41426,2414.1,2413.9,0.466]
[1730845314847,0.41426,2414.1,2413.9,0.88028]
[1730845315145,0.41426,2414.1,2413.9,0.466]
[1730845315340,0.41424,2414.2,2413.9,1.31427]
[1730845315538,0.41426,2414.1,2413.9,1.31427]
[1730845315742,0.41427,2414.0,2413.9,0.9]
[1730845315941,4.24328,2414.5,2413.9,1.31428]
[1730845315942,0.41425,2414.1,2413.9,1.31428]
[1730845316343,40.8,2414.4,2413.9,0.9]
[1730845316642,0.41427,2414.0,2413.9,0.9]
[1730845317847,0.41426,2414.1,2413.9,1.31427]
[1730845318147,40.8,2414.4,2413.9,0.9]
[1730845318446,0.41426,2414.1,2413.9,1.31427]
[1730845318746,0.41424,2414.2,2414.0,0.41426]
[1730845318947,0.41425,2414.1,2413.9,1.31427]
[1730845320449,40.8,2414.4,2413.9,1.31427]
[1730845320644,0.41427,2414.0,2413.9,0.9]
[1730845320852,40.8,2414.4,2413.9,0.9]
[1730845321144,0.41427,2414.0,2413.9,0.9]
[1730845321446,0.41427,2414.0,2413.9,1.31428]
[1730845321644,0.41426,2414.1,2413.9,5.45668]
[1730845321945,0.41426,2414.1,2413.9,1.31428]
[1730845322248,0.41427,2414.0,2413.9,1.31428]
[1730845322450,0.41427,2414.0,2413.9,0.466]
[1730845324552,0.41427,2414.0,2413.9,0.88028]
[1730845324849,0.41427,2414.0,2413.9,0.466]
[1730845325853,1.03572,2413.9,2413.2,0.208]
[1730845326147,1.03572,2413.9,2412.6,5.79485134]
[1730845326148,0.4144,2413.2,2413.1,0.9201]
[1730845326345,3.2078,2413.6,2413.1,0.9201]
[1730845326947,0.4144,2413.2,2413.1,0.9201]
[1730845332356,0.4144,2413.2,2413.1,5.0641]
[1730845332557,0.4144,2413.2,2413.1,0.9201]
[1730845339668,3.2078,2413.4,2412.8,0.4715]
[1730845339871,0.41444,2413.0,2412.9,0.4713]
[1730845340276,0.41444,2413.0,2412.9,4.6153]
[1730845344685,0.41444,2413.0,2412.9,5.02975]
[1730845344878,0.41444,2413.0,2412.9,4.6153]
[1730845345384,0.41444,2413.0,2412.9,5.80927537]